[Event "Live Chess"]
[Site "Chess.com"]
[Date "2023.05.20"]
[Round "-"]
[White "ClassyChameleon"]
[Black "profpirate4"]
[Result "0-1"]
[WhiteElo "1065"]
[BlackElo "1049"]
[TimeControl "300"]
[EndTime "11:18:48 PDT"]
[Termination "profpirate4 won on time"]

1. e4 {[%clk 0:04:57]} 1... c5 {[%clk 0:04:58.7]} 2. Nc3 {[%clk 0:04:55.7]} 2...
d6 {[%clk 0:04:58.1]} 3. Bc4 {[%clk 0:04:51.6]} 3... Nf6 {[%clk 0:04:58]} 4. d3
{[%clk 0:04:49.3]} 4... e6 {[%clk 0:04:57.2]} 5. Nf3 {[%clk 0:04:47.7]} 5... a6
{[%clk 0:04:56.3]} 6. Be3 {[%clk 0:04:43]} 6... b5 {[%clk 0:04:55.6]} 7. Nxb5
{[%clk 0:04:34.8]} 7... axb5 {[%clk 0:04:54.3]} 8. Bxb5+ {[%clk 0:04:34.5]} 8...
Bd7 {[%clk 0:04:52.5]} 9. Bc4 {[%clk 0:04:30.7]} 9... Nc6 {[%clk 0:04:50.5]} 10.
O-O {[%clk 0:04:20]} 10... Na5 {[%clk 0:04:47.2]} 11. b3 {[%clk 0:04:16]} 11...
Nxc4 {[%clk 0:04:45.8]} 12. bxc4 {[%clk 0:04:15.4]} 12... Be7 {[%clk 0:04:45]}
13. c3 {[%clk 0:04:11.2]} 13... O-O {[%clk 0:04:43.8]} 14. d4 {[%clk 0:04:10.6]}
14... cxd4 {[%clk 0:04:41.4]} 15. cxd4 {[%clk 0:04:10]} 15... Nxe4 {[%clk
0:04:40.2]} 16. d5 {[%clk 0:04:06.1]} 16... exd5 {[%clk 0:04:36]} 17. cxd5
{[%clk 0:04:05.5]} 17... Nc5 {[%clk 0:04:33.6]} 18. Bxc5 {[%clk 0:04:02.3]}
18... dxc5 {[%clk 0:04:32.5]} 19. Ne5 {[%clk 0:03:58.1]} 19... Bf5 {[%clk
0:04:24]} 20. Nc6 {[%clk 0:03:53.2]} 20... Qc7 {[%clk 0:04:19.1]} 21. Re1 {[%clk
0:03:45.3]} 21... Bd6 {[%clk 0:04:16.8]} 22. g3 {[%clk 0:03:24.6]} 22... Rfe8
{[%clk 0:04:00.5]} 23. Qh5 {[%clk 0:03:09.6]} 23... Bd3 {[%clk 0:03:49]} 24.
Rxe8+ {[%clk 0:02:47.7]} 24... Rxe8 {[%clk 0:03:46.9]} 25. Rc1 {[%clk
0:02:39.8]} 25... c4 {[%clk 0:03:45.1]} 26. Nd4 {[%clk 0:02:31]} 26... Re5
{[%clk 0:03:30.9]} 27. Qh3 {[%clk 0:01:51.4]} 27... Rxd5 {[%clk 0:03:24.6]} 28.
Nf3 {[%clk 0:01:38.5]} 28... Bc5 {[%clk 0:03:06.1]} 29. Re1 {[%clk 0:01:22.2]}
29... Rf5 {[%clk 0:02:54]} 30. Re8+ {[%clk 0:01:17.5]} 30... Bf8 {[%clk
0:02:52.1]} 31. Nd4 {[%clk 0:01:08.7]} 31... Rd5 {[%clk 0:02:35.5]} 32. Nf5
{[%clk 0:01:00.8]} 32... Bxf5 {[%clk 0:02:17.9]} 33. Qh5 {[%clk 0:00:54]} 33...
Qd7 {[%clk 0:02:05.3]} 34. Re1 {[%clk 0:00:40.9]} 34... Be4 {[%clk 0:01:58.3]}
35. Qe2 {[%clk 0:00:24.1]} 35... Bb4 {[%clk 0:01:34.5]} 36. Qb2 {[%clk
0:00:13.7]} 36... Bxe1 {[%clk 0:01:16.3]} 37. Qb8+ {[%clk 0:00:10.7]} 37... Qd8
{[%clk 0:01:15.2]} 38. Qxd8+ {[%clk 0:00:10.4]} 38... Rxd8 {[%clk 0:01:13.8]}
39. Kf1 {[%clk 0:00:10.2]} 39... Ba5 {[%clk 0:01:10.4]} 40. Ke2 {[%clk
0:00:09.9]} 40... c3 {[%clk 0:01:07.7]} 41. Ke3 {[%clk 0:00:09.6]} 41... c2
{[%clk 0:01:05.7]} 42. Kxe4 {[%clk 0:00:09.4]} 42... c1=Q {[%clk 0:01:04.4]} 43.
Kf3 {[%clk 0:00:08.3]} 43... Qc6+ {[%clk 0:01:01.7]} 44. Kg4 {[%clk 0:00:07.3]}
44... Rd4+ {[%clk 0:01:00.6]} 45. f4 {[%clk 0:00:06.4]} 45... Qg6+ {[%clk
0:00:56.7]} 46. Kf3 {[%clk 0:00:06]} 46... Qd3+ {[%clk 0:00:52.7]} 47. Kg4
{[%clk 0:00:05.4]} 47... Qe2+ {[%clk 0:00:52]} 48. Kh3 {[%clk 0:00:04.8]} 48...
Qf1+ {[%clk 0:00:50.9]} 49. Kh4 {[%clk 0:00:03.9]} 49... Rd6 {[%clk 0:00:48.3]}
50. g4 {[%clk 0:00:02.4]} 50... Rd3 {[%clk 0:00:45.9]} 0-1

[Event "Live Chess"]
[Site "Chess.com"]
[Date "2023.05.20"]
[Round "-"]
[White "laki79"]
[Black "Horseymobile"]
[Result "1-0"]
[WhiteElo "2303"]
[BlackElo "1235"]
[TimeControl "300"]
[EndTime "11:18:57 PDT"]
[Termination "laki79 won on time"]

1. d4 {[%clk 0:04:57.7]} 1... Nf6 {[%clk 0:04:58.8]} 2. c4 {[%clk 0:04:56.7]}
2... g6 {[%clk 0:04:55.2]} 3. Nc3 {[%clk 0:04:55.5]} 3... d6 {[%clk 0:04:50.6]}
4. e4 {[%clk 0:04:54.3]} 4... Bg7 {[%clk 0:04:45.3]} 5. f3 {[%clk 0:04:53.5]}
5... O-O {[%clk 0:04:43.4]} 6. Be3 {[%clk 0:04:53]} 6... Nc6 {[%clk 0:04:42.4]}
7. Qd2 {[%clk 0:04:52.1]} 7... e5 {[%clk 0:04:38.1]} 8. d5 {[%clk 0:04:50.7]}
8... Ne7 {[%clk 0:04:35.6]} 9. g4 {[%clk 0:04:46.8]} 9... Nd7 {[%clk 0:04:29]}
10. O-O-O {[%clk 0:04:43.3]} 10... a5 {[%clk 0:04:21.4]} 11. Bd3 {[%clk
0:04:38.9]} 11... Nc5 {[%clk 0:04:03]} 12. Bc2 {[%clk 0:04:36.7]} 12... b6
{[%clk 0:03:58.6]} 13. Nge2 {[%clk 0:04:34]} 13... Ba6 {[%clk 0:03:56.6]} 14. b3
{[%clk 0:04:29.8]} 14... Rb8 {[%clk 0:03:45.9]} 15. h4 {[%clk 0:04:16.3]} 15...
Qd7 {[%clk 0:03:22.1]} 16. h5 {[%clk 0:04:10.2]} 16... b5 {[%clk 0:03:19.3]} 17.
cxb5 {[%clk 0:03:56.7]} 17... Bxb5 {[%clk 0:03:16.1]} 18. Bxc5 {[%clk
0:03:36.1]} 18... dxc5 {[%clk 0:03:06.5]} 19. Nxb5 {[%clk 0:03:35]} 19... Qxb5
{[%clk 0:03:05]} 20. Bd3 {[%clk 0:03:25.1]} 20... Qb6 {[%clk 0:02:57.9]} 21. Nc3
{[%clk 0:03:18.1]} 21... Ra8 {[%clk 0:02:34.7]} 22. Na4 {[%clk 0:03:15.5]} 22...
Qd6 {[%clk 0:02:13.8]} 23. Qc3 {[%clk 0:02:51.4]} 23... c6 {[%clk 0:01:21.7]}
24. dxc6 {[%clk 0:02:21.5]} 24... Nxc6 {[%clk 0:00:51.3]} 25. Qxc5 {[%clk
0:02:18.1]} 25... Qc7 {[%clk 0:00:41.9]} 26. Bb5 {[%clk 0:02:14.7]} 26... Rac8
{[%clk 0:00:33.4]} 27. Bxc6 {[%clk 0:01:59.9]} 27... Qd8 {[%clk 0:00:15.8]} 28.
Rxd8 {[%clk 0:01:56.7]} 28... Rfxd8 {[%clk 0:00:12.4]} 29. Kb2 {[%clk
0:01:51.8]} 29... Bf8 {[%clk 0:00:12]} 30. Qc2 {[%clk 0:01:44.9]} 30... Bb4
{[%clk 0:00:07.9]} 31. Rd1 {[%clk 0:01:33.7]} 31... Rxd1 {[%clk 0:00:05.4]} 32.
Qxd1 {[%clk 0:01:33.6]} 32... Rxc6 {[%clk 0:00:04.1]} 33. h6 {[%clk 0:01:17.7]}
1-0

[Event "Live Chess"]
[Site "Chess.com"]
[Date "2023.05.20"]
[Round "-"]
[White "LiamBellwood"]
[Black "raminguy"]
[Result "1/2-1/2"]
[WhiteElo "2077"]
[BlackElo "1979"]
[TimeControl "300"]
[EndTime "11:18:58 PDT"]
[Termination "Game drawn by repetition"]

1. d4 {[%clk 0:04:59.6]} 1... d5 {[%clk 0:04:58.9]} 2. Nc3 {[%clk 0:04:58.5]}
2... Nf6 {[%clk 0:04:57.3]} 3. Bf4 {[%clk 0:04:58.1]} 3... e6 {[%clk 0:04:56.5]}
4. Nb5 {[%clk 0:04:57.2]} 4... Bb4+ {[%clk 0:04:55.7]} 5. c3 {[%clk 0:04:56]}
5... Ba5 {[%clk 0:04:55.1]} 6. b4 {[%clk 0:04:55.5]} 6... Bb6 {[%clk 0:04:54.1]}
7. a4 {[%clk 0:04:55.4]} 7... a5 {[%clk 0:04:53.4]} 8. Qb3 {[%clk 0:04:43]} 8...
O-O {[%clk 0:04:49]} 9. Nf3 {[%clk 0:04:42.6]} 9... Nc6 {[%clk 0:04:41.2]} 10.
e3 {[%clk 0:04:40.8]} 10... axb4 {[%clk 0:04:39.6]} 11. cxb4 {[%clk 0:04:37.8]}
11... Nxb4 {[%clk 0:04:38.9]} 12. Bxc7 {[%clk 0:04:18.2]} 12... Bxc7 {[%clk
0:04:37]} 13. Nxc7 {[%clk 0:04:17.4]} 13... Qxc7 {[%clk 0:04:36.6]} 14. Qxb4
{[%clk 0:04:16.6]} 14... Ne4 {[%clk 0:04:33.7]} 15. Bd3 {[%clk 0:04:06.4]} 15...
Qc3+ {[%clk 0:04:28.3]} 16. Qxc3 {[%clk 0:04:05.1]} 16... Nxc3 {[%clk
0:04:28.1]} 17. Kd2 {[%clk 0:03:55.8]} 17... Nxa4 {[%clk 0:04:24.3]} 18. Bb5
{[%clk 0:03:52.7]} 18... Nb6 {[%clk 0:04:23.1]} 19. Rxa8 {[%clk 0:03:39.9]}
19... Nxa8 {[%clk 0:04:21.5]} 20. Ne5 {[%clk 0:03:39.8]} 20... Nc7 {[%clk
0:04:17.8]} 21. Ba4 {[%clk 0:03:36]} 21... f6 {[%clk 0:04:13.6]} 22. Nf3 {[%clk
0:03:32.9]} 22... Rd8 {[%clk 0:04:07.3]} 23. Rc1 {[%clk 0:03:32.1]} 23... Na6
{[%clk 0:04:05.6]} 24. Ne1 {[%clk 0:03:17.8]} 24... Bd7 {[%clk 0:04:04.4]} 25.
Bxd7 {[%clk 0:02:54.1]} 25... Rxd7 {[%clk 0:04:04.3]} 26. Nd3 {[%clk 0:02:53.3]}
26... Rc7 {[%clk 0:04:00.9]} 27. Rb1 {[%clk 0:02:48.7]} 27... Kf7 {[%clk
0:03:55.5]} 28. Nc5 {[%clk 0:02:48]} 28... Nxc5 {[%clk 0:03:51]} 29. dxc5 {[%clk
0:02:47.9]} 29... Ke7 {[%clk 0:03:49.2]} 30. Rb5 {[%clk 0:02:43.3]} 30... Kd7
{[%clk 0:03:47.7]} 31. Kc3 {[%clk 0:02:37]} 31... Kc6 {[%clk 0:03:39.4]} 32. Kb4
{[%clk 0:02:35.9]} 32... e5 {[%clk 0:03:35.9]} 33. Rb6+ {[%clk 0:02:34.4]} 33...
Kd7 {[%clk 0:03:34.9]} 34. Rd6+ {[%clk 0:02:33.9]} 34... Ke7 {[%clk 0:03:32.5]}
35. Rxd5 {[%clk 0:02:33.6]} 35... g6 {[%clk 0:03:29.5]} 36. Kb5 {[%clk
0:02:30.1]} 36... Rc6 {[%clk 0:03:24.6]} 37. e4 {[%clk 0:02:21.1]} 37... Ke6
{[%clk 0:03:18.1]} 38. Rd8 {[%clk 0:02:14.9]} 38... f5 {[%clk 0:03:15]} 39.
exf5+ {[%clk 0:02:10.2]} 39... gxf5 {[%clk 0:03:13.2]} 40. Rb8 {[%clk
0:02:09.2]} 40... Kd5 {[%clk 0:03:12.5]} 41. Rd8+ {[%clk 0:02:06.6]} 41... Ke6
{[%clk 0:03:10.9]} 42. Rb8 {[%clk 0:02:05.2]} 42... Kd5 {[%clk 0:03:10.2]} 43.
Rd8+ {[%clk 0:02:04.8]} 43... Ke6 {[%clk 0:03:09.6]} 1/2-1/2

[Event "Live Chess"]
[Site "Chess.com"]
[Date "2023.05.20"]
[Round "-"]
[White "BogdanBeleiUkraine"]
[Black "ProfPoisson"]
[Result "1-0"]
[WhiteElo "1184"]
[BlackElo "1049"]
[TimeControl "300"]
[EndTime "11:19:03 PDT"]
[Termination "BogdanBeleiUkraine won by resignation"]

1. e4 {[%clk 0:04:58.1]} 1... e5 {[%clk 0:04:54.6]} 2. Nc3 {[%clk 0:04:57.5]}
2... Nf6 {[%clk 0:04:51.5]} 3. Bc4 {[%clk 0:04:55.7]} 3... d5 {[%clk 0:04:47.3]}
4. exd5 {[%clk 0:04:53.4]} 4... Nxd5 {[%clk 0:04:45]} 5. Nxd5 {[%clk 0:04:44.5]}
5... Bc5 {[%clk 0:04:40.9]} 6. d3 {[%clk 0:04:36.8]} 6... c6 {[%clk 0:04:29.4]}
7. Ne3 {[%clk 0:04:32.1]} 7... Bxe3 {[%clk 0:04:13.8]} 8. Bxe3 {[%clk
0:04:29.8]} 8... O-O {[%clk 0:04:10]} 9. Nf3 {[%clk 0:04:27.5]} 9... Bg4 {[%clk
0:04:05.3]} 10. h3 {[%clk 0:04:25.5]} 10... Bxf3 {[%clk 0:03:59.5]} 11. Qxf3
{[%clk 0:04:23.7]} 11... b5 {[%clk 0:03:59.2]} 12. Bb3 {[%clk 0:04:19.6]} 12...
Qa5+ {[%clk 0:03:50.8]} 13. Bd2 {[%clk 0:04:14.2]} 13... Qd8 {[%clk 0:03:47.5]}
14. O-O {[%clk 0:04:06.7]} 14... Nd7 {[%clk 0:03:40.9]} 15. Qxc6 {[%clk
0:04:03.9]} 15... Nf6 {[%clk 0:03:37.6]} 16. Qxb5 {[%clk 0:03:56.4]} 16... e4
{[%clk 0:03:35.6]} 17. Rae1 {[%clk 0:03:43.8]} 17... Rb8 {[%clk 0:03:28.2]} 18.
Qa5 {[%clk 0:03:37.7]} 18... Qd4 {[%clk 0:03:19.4]} 19. Bc3 {[%clk 0:03:29.6]}
19... Qd6 {[%clk 0:03:05.5]} 20. Be5 {[%clk 0:03:20.5]} 20... Qd7 {[%clk
0:02:51]} 21. Bxb8 {[%clk 0:03:17.4]} 1-0

[Event "Live Chess"]
[Site "Chess.com"]
[Date "2023.05.20"]
[Round "-"]
[White "Singapourfeuj"]
[Black "SavagePawn7"]
[Result "1-0"]
[WhiteElo "2235"]
[BlackElo "750"]
[TimeControl "300"]
[EndTime "11:19:06 PDT"]
[Termination "Singapourfeuj won by resignation"]

1. d4 {[%clk 0:04:56.9]} 1... e5 {[%clk 0:04:57.8]} 2. dxe5 {[%clk 0:04:53.8]}
2... d6 {[%clk 0:04:56.4]} 3. exd6 {[%clk 0:04:50.5]} 3... Bxd6 {[%clk
0:04:54.9]} 4. Nf3 {[%clk 0:04:49.9]} 4... Nc6 {[%clk 0:04:52.9]} 5. e4 {[%clk
0:04:43.6]} 5... Bg4 {[%clk 0:04:47.6]} 6. Be2 {[%clk 0:04:41.8]} 6... Qe7
{[%clk 0:04:44.6]} 7. Nc3 {[%clk 0:04:40.3]} 7... O-O-O {[%clk 0:04:42.5]} 8.
Bd2 {[%clk 0:04:39.2]} 8... Bxf3 {[%clk 0:04:26]} 9. Bxf3 {[%clk 0:04:38.1]}
9... Nd4 {[%clk 0:04:22.7]} 10. O-O {[%clk 0:04:36.6]} 10... Nxf3+ {[%clk
0:04:16.9]} 11. Qxf3 {[%clk 0:04:35.3]} 11... Bxh2+ {[%clk 0:03:57]} 12. Kxh2
{[%clk 0:04:34.4]} 12... Rxd2 {[%clk 0:03:55.7]} 13. Rad1 {[%clk 0:04:30.7]}
13... Rxd1 {[%clk 0:03:53]} 14. Rxd1 {[%clk 0:04:29.5]} 14... Nf6 {[%clk
0:03:50]} 15. Qf5+ {[%clk 0:04:24.1]} 15... Kb8 {[%clk 0:03:46.5]} 16. Nd5
{[%clk 0:04:22.7]} 16... Qd6+ {[%clk 0:03:35.2]} 17. g3 {[%clk 0:04:20.3]} 17...
Nxd5 {[%clk 0:03:27.7]} 18. Qxd5 {[%clk 0:04:17.9]} 18... Qxd5 {[%clk
0:03:26.4]} 19. Rxd5 {[%clk 0:04:16.9]} 19... b6 {[%clk 0:03:23]} 20. Kg2 {[%clk
0:04:12.6]} 20... Kb7 {[%clk 0:03:19.7]} 21. f4 {[%clk 0:04:11.4]} 21... Re8
{[%clk 0:03:10.7]} 22. Kf3 {[%clk 0:04:10.4]} 22... c6 {[%clk 0:03:07.6]} 23.
Rd7+ {[%clk 0:04:08.3]} 23... Kc8 {[%clk 0:03:05.2]} 24. Rxf7 {[%clk 0:04:04.2]}
24... Rg8 {[%clk 0:03:00.8]} 25. Rxa7 {[%clk 0:04:02.5]} 25... Kb8 {[%clk
0:02:59]} 26. Rf7 {[%clk 0:04:01.1]} 26... g6 {[%clk 0:02:52.8]} 27. Rxh7 {[%clk
0:03:58.3]} 1-0

[Event "Live Chess"]
[Site "Chess.com"]
[Date "2023.05.20"]
[Round "-"]
[White "ms_lilley"]
[Black "OceanFloater"]
[Result "1/2-1/2"]
[WhiteElo "588"]
[BlackElo "973"]
[TimeControl "300"]
[EndTime "11:19:09 PDT"]
[Termination "Game drawn by repetition"]

1. d4 {[%clk 0:04:58.3]} 1... c6 {[%clk 0:04:59.7]} 2. e3 {[%clk 0:04:53.1]}
2... d5 {[%clk 0:04:59.4]} 3. c4 {[%clk 0:04:50]} 3... Bf5 {[%clk 0:04:58.3]} 4.
c5 {[%clk 0:04:48.4]} 4... b6 {[%clk 0:04:55.6]} 5. b4 {[%clk 0:04:46.8]} 5...
bxc5 {[%clk 0:04:54.4]} 6. bxc5 {[%clk 0:04:45.1]} 6... Nd7 {[%clk 0:04:51.9]}
7. Ba3 {[%clk 0:04:38.4]} 7... e5 {[%clk 0:04:50.5]} 8. Nc3 {[%clk 0:04:31.4]}
8... exd4 {[%clk 0:04:49.5]} 9. exd4 {[%clk 0:04:29.6]} 9... Ngf6 {[%clk
0:04:49.1]} 10. Nf3 {[%clk 0:04:27.3]} 10... Be7 {[%clk 0:04:43]} 11. Bd3 {[%clk
0:04:25.4]} 11... Bxd3 {[%clk 0:04:41.4]} 12. Qxd3 {[%clk 0:04:23.7]} 12... O-O
{[%clk 0:04:41]} 13. O-O {[%clk 0:04:12]} 13... Qa5 {[%clk 0:04:39.2]} 14. Bb2
{[%clk 0:03:59.1]} 14... Rab8 {[%clk 0:04:32.8]} 15. Qc2 {[%clk 0:03:44]} 15...
Ne4 {[%clk 0:04:26.6]} 16. Nxe4 {[%clk 0:03:40.7]} 16... dxe4 {[%clk 0:04:25.5]}
17. Ne5 {[%clk 0:03:38.5]} 17... Nxe5 {[%clk 0:04:21.9]} 18. dxe5 {[%clk
0:03:36.7]} 18... Bxc5 {[%clk 0:04:20.6]} 19. g3 {[%clk 0:03:21.2]} 19... Rfd8
{[%clk 0:04:13]} 20. Rfe1 {[%clk 0:03:12]} 20... Rd2 {[%clk 0:04:07.9]} 21. Qxe4
{[%clk 0:03:00.2]} 21... Rdxb2 {[%clk 0:03:56.2]} 22. e6 {[%clk 0:02:51.6]}
22... Bb4 {[%clk 0:03:40.5]} 23. e7 {[%clk 0:02:47.5]} 23... Bxe7 {[%clk
0:03:23.4]} 24. Qxe7 {[%clk 0:02:40.9]} 24... h6 {[%clk 0:03:19.8]} 25. Qd7
{[%clk 0:02:32.4]} 25... Rxa2 {[%clk 0:03:14.9]} 26. Re8+ {[%clk 0:02:20.3]}
26... Rxe8 {[%clk 0:03:12.1]} 27. Qxe8+ {[%clk 0:02:17.4]} 27... Kh7 {[%clk
0:03:10]} 28. Qe4+ {[%clk 0:02:12]} 28... g6 {[%clk 0:03:08.4]} 29. Rxa2 {[%clk
0:02:05]} 29... Qxa2 {[%clk 0:03:06.8]} 30. Qxc6 {[%clk 0:02:02.7]} 30... a5
{[%clk 0:03:03.6]} 31. Qd7 {[%clk 0:01:56.7]} 31... Qb1+ {[%clk 0:02:57.5]} 32.
Kg2 {[%clk 0:01:49.7]} 32... Qe4+ {[%clk 0:02:56.2]} 33. f3 {[%clk 0:01:46.6]}
33... Qc2+ {[%clk 0:02:53]} 34. Kh3 {[%clk 0:01:38.6]} 34... a4 {[%clk
0:02:52.4]} 35. Qxf7+ {[%clk 0:01:31.3]} 35... Kh8 {[%clk 0:02:50.4]} 36. Qf6+
{[%clk 0:01:25.2]} 36... Kh7 {[%clk 0:02:47.4]} 37. g4 {[%clk 0:01:15.1]} 37...
a3 {[%clk 0:02:41.7]} 38. Qe7+ {[%clk 0:01:10.6]} 38... Kg8 {[%clk 0:02:30.7]}
39. Qxa3 {[%clk 0:01:08.6]} 39... Qc6 {[%clk 0:02:25.4]} 40. Qe3 {[%clk
0:00:58.7]} 40... h5 {[%clk 0:02:16.4]} 41. Qh6 {[%clk 0:00:55.4]} 41... hxg4+
{[%clk 0:02:14.2]} 42. Kxg4 {[%clk 0:00:52.3]} 42... Qe6+ {[%clk 0:02:10.4]} 43.
Kg5 {[%clk 0:00:46.3]} 43... Qf5+ {[%clk 0:02:09.1]} 44. Kh4 {[%clk 0:00:40.5]}
44... Qxf3 {[%clk 0:01:53]} 45. Qxg6+ {[%clk 0:00:38]} 45... Kf8 {[%clk
0:01:52.3]} 46. Qg3 {[%clk 0:00:31.5]} 46... Qf6+ {[%clk 0:01:50.9]} 47. Kh3
{[%clk 0:00:29.5]} 47... Kf7 {[%clk 0:01:47.2]} 48. Kg2 {[%clk 0:00:27.7]} 48...
Qg6 {[%clk 0:01:44.6]} 49. h4 {[%clk 0:00:25.1]} 49... Qc2+ {[%clk 0:01:41.3]}
50. Kh3 {[%clk 0:00:23.3]} 50... Qf5+ {[%clk 0:01:39.7]} 51. Qg4 {[%clk
0:00:22]} 51... Qd3+ {[%clk 0:01:38.9]} 52. Qg3 {[%clk 0:00:20.3]} 52... Qf5+
{[%clk 0:01:37.8]} 53. Qg4 {[%clk 0:00:19.4]} 53... Qf1+ {[%clk 0:01:33.9]} 54.
Qg2 {[%clk 0:00:16.3]} 54... Qxg2+ {[%clk 0:01:33.2]} 55. Kxg2 {[%clk 0:00:15]}
55... Kg6 {[%clk 0:01:32.8]} 56. Kg3 {[%clk 0:00:13.9]} 56... Kh5 {[%clk
0:01:32.5]} 57. Kh3 {[%clk 0:00:11.4]} 57... Kh6 {[%clk 0:01:31.6]} 58. Kg3
{[%clk 0:00:10.6]} 58... Kh5 {[%clk 0:01:31]} 59. Kh3 {[%clk 0:00:09.8]} 59...
Kh6 {[%clk 0:01:30.4]} 60. Kg3 {[%clk 0:00:09]} 60... Kh5 {[%clk 0:01:29.9]}
1/2-1/2

[Event "Live Chess"]
[Site "Chess.com"]
[Date "2023.05.20"]
[Round "-"]
[White "WilliamofOrange16th"]
[Black "seabuck"]
[Result "1/2-1/2"]
[WhiteElo "1882"]
[BlackElo "1863"]
[TimeControl "300"]
[EndTime "11:19:17 PDT"]
[Termination "Game drawn by agreement"]

1. e4 {[%clk 0:04:59]} 1... e6 {[%clk 0:04:58.8]} 2. b3 {[%clk 0:04:57]} 2... c5
{[%clk 0:04:51.9]} 3. Bb2 {[%clk 0:04:55.6]} 3... Nc6 {[%clk 0:04:49.2]} 4. c4
{[%clk 0:04:47.3]} 4... e5 {[%clk 0:04:46.2]} 5. Nf3 {[%clk 0:04:43.9]} 5... d6
{[%clk 0:04:45.2]} 6. Nc3 {[%clk 0:04:40.9]} 6... Nf6 {[%clk 0:04:42.9]} 7. d3
{[%clk 0:04:40]} 7... Be7 {[%clk 0:04:41]} 8. h3 {[%clk 0:04:38.2]} 8... Be6
{[%clk 0:04:33.7]} 9. Nd5 {[%clk 0:04:36.5]} 9... Bxd5 {[%clk 0:04:32]} 10. exd5
{[%clk 0:04:29.9]} 10... Nd4 {[%clk 0:04:25.2]} 11. Nxd4 {[%clk 0:04:27.6]}
11... cxd4 {[%clk 0:04:18.7]} 12. Be2 {[%clk 0:04:25.8]} 12... Qa5+ {[%clk
0:04:11]} 13. Qd2 {[%clk 0:04:22.4]} 13... Qxd2+ {[%clk 0:04:09.2]} 14. Kxd2
{[%clk 0:04:22.3]} 14... Kd7 {[%clk 0:04:04.8]} 15. Rhc1 {[%clk 0:04:02]} 15...
Rhc8 {[%clk 0:03:50.8]} 16. b4 {[%clk 0:04:00.1]} 16... a5 {[%clk 0:03:40.2]}
17. bxa5 {[%clk 0:03:51.3]} 17... Rxa5 {[%clk 0:03:34.5]} 18. a4 {[%clk
0:03:39.7]} 18... Bd8 {[%clk 0:03:19.1]} 19. Bd1 {[%clk 0:03:34.5]} 19... Ra7
{[%clk 0:03:03]} 20. Ba3 {[%clk 0:03:17.2]} 20... Ba5+ {[%clk 0:02:59.4]} 21.
Ke2 {[%clk 0:03:16]} 21... g6 {[%clk 0:02:45.3]} 22. Rab1 {[%clk 0:03:14.9]}
22... Nh5 {[%clk 0:02:34.5]} 23. g3 {[%clk 0:03:13.3]} 23... f5 {[%clk
0:02:31.3]} 24. Bb4 {[%clk 0:03:10.3]} 24... Rc7 {[%clk 0:02:19.4]} 25. Rb2
{[%clk 0:02:49.2]} 25... Nf6 {[%clk 0:01:57.4]} 26. Rcb1 {[%clk 0:02:24.4]}
26... Bxb4 {[%clk 0:01:51]} 27. Rxb4 {[%clk 0:02:24.3]} 27... h5 {[%clk
0:01:37.5]} 28. Rc1 {[%clk 0:02:19.7]} 28... Ra5 {[%clk 0:01:34.6]} 29. Rb5
{[%clk 0:02:18.3]} 29... Rxb5 {[%clk 0:01:29.2]} 30. axb5 {[%clk 0:02:18.2]}
30... b6 {[%clk 0:01:23.3]} 31. Ra1 {[%clk 0:02:16.9]} 31... Rc8 {[%clk
0:01:17]} 32. Ra7+ {[%clk 0:02:13.4]} 32... Rc7 {[%clk 0:01:15.8]} 33. Ra6
{[%clk 0:02:12.9]} 33... Rb7 {[%clk 0:01:13.1]} 34. Kd2 {[%clk 0:01:56.7]} 34...
Kc7 {[%clk 0:01:11.5]} 35. Ra8 {[%clk 0:01:53.9]} 35... Rb8 {[%clk 0:01:10.5]}
36. Ra7+ {[%clk 0:01:53.3]} 36... Rb7 {[%clk 0:01:09.8]} 37. Ra8 {[%clk
0:01:30.7]} 37... Rb8 {[%clk 0:01:08.7]} 38. Rxb8 {[%clk 0:01:29.8]} 38... Kxb8
{[%clk 0:01:07.3]} 39. f3 {[%clk 0:01:25.2]} 39... Kc7 {[%clk 0:01:04.3]} 40.
Ke2 {[%clk 0:01:20.6]} 40... Kd7 {[%clk 0:01:02.8]} 41. Kf2 {[%clk 0:01:19.7]}
41... Ke7 {[%clk 0:01:01.9]} 42. Kg2 {[%clk 0:01:18.7]} 42... Nd7 {[%clk
0:01:00.5]} 43. Be2 {[%clk 0:01:14.5]} 43... Kf6 {[%clk 0:00:59.1]} 44. h4
{[%clk 0:01:13.9]} 44... Nc5 {[%clk 0:00:53.5]} 45. Kf2 {[%clk 0:01:13]} 45...
Nd7 {[%clk 0:00:51.4]} 46. Bf1 {[%clk 0:01:02.3]} 46... Nc5 {[%clk 0:00:50.1]}
47. Ke2 {[%clk 0:01:01.4]} 47... Nd7 {[%clk 0:00:48.5]} 48. Bg2 {[%clk
0:01:00.6]} 48... Nc5 {[%clk 0:00:46.6]} 49. Kd2 {[%clk 0:00:57.5]} 49... Nd7
{[%clk 0:00:45.5]} 50. f4 {[%clk 0:00:54.7]} 50... exf4 {[%clk 0:00:39.2]} 51.
gxf4 {[%clk 0:00:54.6]} 51... Nc5 {[%clk 0:00:36.2]} 52. Bf3 {[%clk 0:00:52.7]}
52... Nd7 {[%clk 0:00:33.4]} 53. Bd1 {[%clk 0:00:50.7]} 53... Nc5 {[%clk
0:00:32.4]} 54. Bc2 {[%clk 0:00:47.6]} 54... Nd7 {[%clk 0:00:31.8]} 55. Ke2
{[%clk 0:00:47]} 55... Nc5 {[%clk 0:00:30.2]} 56. Kf3 {[%clk 0:00:46.1]} 56...
Nd7 {[%clk 0:00:28]} 1/2-1/2

[Event "Live Chess"]
[Site "Chess.com"]
[Date "2023.05.20"]
[Round "-"]
[White "birdseed45"]
[Black "mliszewski"]
[Result "1-0"]
[WhiteElo "1875"]
[BlackElo "1893"]
[TimeControl "300"]
[EndTime "11:19:18 PDT"]
[Termination "birdseed45 won by resignation"]

1. e4 {[%clk 0:04:58.4]} 1... c6 {[%clk 0:04:58.7]} 2. d4 {[%clk 0:04:56.8]}
2... d5 {[%clk 0:04:58.6]} 3. Nc3 {[%clk 0:04:54.9]} 3... dxe4 {[%clk
0:04:57.7]} 4. Nxe4 {[%clk 0:04:53.1]} 4... Nf6 {[%clk 0:04:57.2]} 5. Nxf6+
{[%clk 0:04:49.1]} 5... exf6 {[%clk 0:04:57.1]} 6. Nf3 {[%clk 0:04:47.8]} 6...
Bd6 {[%clk 0:04:56.7]} 7. Bc4 {[%clk 0:04:45.4]} 7... O-O {[%clk 0:04:55]} 8.
O-O {[%clk 0:04:43.9]} 8... Re8 {[%clk 0:04:54.6]} 9. c3 {[%clk 0:04:42.9]} 9...
Nd7 {[%clk 0:04:54.1]} 10. Be3 {[%clk 0:04:38.2]} 10... Nf8 {[%clk 0:04:52.9]}
11. Qb3 {[%clk 0:04:34.6]} 11... Be6 {[%clk 0:04:51.3]} 12. Rfe1 {[%clk
0:04:30.5]} 12... Bxc4 {[%clk 0:04:49.4]} 13. Qxc4 {[%clk 0:04:30.4]} 13... Ng6
{[%clk 0:04:45.6]} 14. Rad1 {[%clk 0:04:26.5]} 14... Qc7 {[%clk 0:04:43.2]} 15.
h3 {[%clk 0:04:25]} 15... Rad8 {[%clk 0:04:39]} 16. d5 {[%clk 0:04:19.8]} 16...
cxd5 {[%clk 0:04:35.2]} 17. Qa4 {[%clk 0:04:07.8]} 17... a6 {[%clk 0:04:29.2]}
18. Qb3 {[%clk 0:04:02.4]} 18... Bf4 {[%clk 0:04:17.9]} 19. Bb6 {[%clk
0:03:57.1]} 19... Rxe1+ {[%clk 0:04:14.9]} 20. Rxe1 {[%clk 0:03:56.6]} 20... Qd7
{[%clk 0:04:04]} 21. Bxd8 {[%clk 0:03:52.7]} 21... Qxd8 {[%clk 0:04:03.9]} 22.
Qxb7 {[%clk 0:03:49.9]} 22... h5 {[%clk 0:04:01.7]} 23. Qxa6 {[%clk 0:03:43.9]}
23... Ne5 {[%clk 0:03:59.8]} 24. Nxe5 {[%clk 0:03:41]} 24... fxe5 {[%clk
0:03:59.4]} 25. a4 {[%clk 0:03:34]} 25... Qg5 {[%clk 0:03:54.2]} 26. Qa8+ {[%clk
0:03:26.9]} 26... Kh7 {[%clk 0:03:51.8]} 27. Qxd5 {[%clk 0:03:24.4]} 27... f6
{[%clk 0:03:41.5]} 28. Qe4+ {[%clk 0:03:20.7]} 28... f5 {[%clk 0:03:38.8]} 29.
Qc6 {[%clk 0:03:08.4]} 29... e4 {[%clk 0:03:36.2]} 30. a5 {[%clk 0:03:02.1]}
30... Bc1 {[%clk 0:03:32.1]} 31. a6 {[%clk 0:02:54.2]} 31... Bxb2 {[%clk
0:03:29.5]} 32. a7 {[%clk 0:02:52.2]} 32... Bxc3 {[%clk 0:03:27.7]} 33. Qxc3
{[%clk 0:02:49.6]} 1-0